[Event "Titled Tuesday Blitz March 14 Early 2023"]
[White "Aanan, Shafiuddin"]
[Black "Shuvalov, Evgenij"]
[WhiteFideId "3242633"]
[BlackFideId "4187237"]
[WhiteElo "1648"]
[BlackElo "2080"]
[Result "0-1"]
[Round "01"]
[TimeControl "180+2"]
[Date "2023.03.14"]
[WhiteClock "0:01:12"]
[BlackClock "0:00:50"]

1. e4 {[%clk 0:02:59]}  e6 {[%clk 0:02:59]} 2. d3 {[%clk 0:02:56]}  d5 {[%clk 0:02:59]} 3. Nd2 {[%clk 0:02:57]}  c5 {[%clk 0:02:59]} 4. Ngf3 {[%clk 0:02:57]}  Nc6 {[%clk 0:02:59]} 5. g3 {[%clk 0:02:57]}  Nf6 {[%clk 0:03:00]} 6. Bg2 {[%clk 0:02:57]}  Be7 {[%clk 0:03:00]} 7. O-O {[%clk 0:02:58]}  O-O {[%clk 0:03:00]} 8. Re1 {[%clk 0:02:58]}  b5 {[%clk 0:03:00]} 9. e5 {[%clk 0:02:58]}  Nd7 {[%clk 0:03:01]} 10. Nf1 {[%clk 0:02:57]}  a5 {[%clk 0:03:01]} 11. h4 {[%clk 0:02:56]}  a4 {[%clk 0:03:01]} 12. N1h2 {[%clk 0:02:56]}  b4 {[%clk 0:02:59]} 13. a3 {[%clk 0:02:56]}  bxa3 {[%clk 0:02:58]} 14. bxa3 {[%clk 0:02:56]}  Rb8 {[%clk 0:02:58]} 15. Bf4 {[%clk 0:02:45]}  Ba6 {[%clk 0:02:55]} 16. h5 {[%clk 0:02:42]}  h6 {[%clk 0:02:54]} 17. Qd2 {[%clk 0:02:37]}  Re8 {[%clk 0:02:54]} 18. g4 {[%clk 0:02:24]}  Nf8 {[%clk 0:02:02]} 19. g5 {[%clk 0:02:22]}  hxg5 {[%clk 0:02:02]} 20. Bxg5 {[%clk 0:02:18]}  Bxg5 {[%clk 0:01:55]} 21. Nxg5 {[%clk 0:02:18]}  Nd4 {[%clk 0:01:51]} 22. Qf4 {[%clk 0:02:10]}  Rb7 {[%clk 0:01:46]} 23. Rac1 {[%clk 0:01:55]}  Nh7 {[%clk 0:01:24]} 24. Nxh7 {[%clk 0:01:51]}  Kxh7 {[%clk 0:01:25]} 25. Ng4 {[%clk 0:01:51]}  Nf5 {[%clk 0:01:19]} 26. h6 {[%clk 0:01:47]}  Nxh6 {[%clk 0:01:15]} 27. Nxh6 {[%clk 0:01:47]}  gxh6 {[%clk 0:01:16]} 28. c4 {[%clk 0:01:42]}  Qg5 {[%clk 0:01:10]} 29. Qxg5 {[%clk 0:01:41]}  hxg5 {[%clk 0:01:11]} 30. cxd5 {[%clk 0:01:41]}  exd5 {[%clk 0:01:08]} 31. Bxd5 {[%clk 0:01:41]}  Rd7 {[%clk 0:01:07]} 32. Bc6 {[%clk 0:01:40]}  Red8 {[%clk 0:01:05]} 33. Bxd7 {[%clk 0:01:40]}  Rxd7 {[%clk 0:01:06]} 34. Rxc5 {[%clk 0:01:38]}  Rxd3 {[%clk 0:01:02]} 35. Ra5 {[%clk 0:01:38]}  Bb7 {[%clk 0:00:58]} 36. Rxa4 {[%clk 0:01:35]}  Kg6 {[%clk 0:00:57]} 37. Rb4 {[%clk 0:01:26]}  Bd5 {[%clk 0:00:56]} 38. a4 {[%clk 0:01:21]}  Rh3 {[%clk 0:00:54]} 39. Kf1 {[%clk 0:01:19]}  Bf3 {[%clk 0:00:51]} 40. Rb6+ {[%clk 0:01:12]}  Kg7 {[%clk 0:00:50]} 0-1


[Site "https://www.chess.com"]

[Event "Titled Tuesday Blitz March 14 Early 2023"]
[White "Skatchkov, Pavel"]
[Black "Bennett, David"]
[WhiteFideId "4121848"]
[BlackFideId "2028271"]
[WhiteElo "2476"]
[BlackElo "2131"]
[Result "1-0"]
[Round "01"]
[TimeControl "180+2"]
[Date "2023.03.14"]
[WhiteClock "0:01:50"]
[BlackClock "0:00:06"]

1. d4 {[%clk 0:02:40]}  b6 {[%clk 0:02:54]} 2. e4 {[%clk 0:02:39]}  Bb7 {[%clk 0:02:54]} 3. Bd3 {[%clk 0:02:39]}  e6 {[%clk 0:02:53]} 4. c4 {[%clk 0:02:39]}  d6 {[%clk 0:02:48]} 5. Nc3 {[%clk 0:02:39]}  Nd7 {[%clk 0:02:48]} 6. Nge2 {[%clk 0:02:32]}  g6 {[%clk 0:02:43]} 7. O-O {[%clk 0:02:29]}  Bg7 {[%clk 0:02:43]} 8. f4 {[%clk 0:02:28]}  f5 {[%clk 0:02:37]} 9. Be3 {[%clk 0:02:28]}  Ngf6 {[%clk 0:02:30]} 10. e5 {[%clk 0:02:26]}  Ng4 {[%clk 0:02:22]} 11. Bc1 {[%clk 0:02:19]}  a6 {[%clk 0:01:50]} 12. h3 {[%clk 0:02:19]}  Nh6 {[%clk 0:01:49]} 13. d5 {[%clk 0:02:18]}  dxe5 {[%clk 0:01:35]} 14. fxe5 {[%clk 0:02:17]}  Nxe5 {[%clk 0:01:27]} 15. Nd4 {[%clk 0:02:16]}  Bc8 {[%clk 0:00:41]} 16. Re1 {[%clk 0:02:12]}  Nhf7 {[%clk 0:00:36]} 17. Nxe6 {[%clk 0:02:02]}  Bxe6 {[%clk 0:00:33]} 18. dxe6 {[%clk 0:02:03]}  Qxd3 {[%clk 0:00:27]} 19. exf7+ {[%clk 0:02:02]}  Kxf7 {[%clk 0:00:27]} 20. Bf4 {[%clk 0:01:59]}  Rhe8 {[%clk 0:00:20]} 21. Bxe5 {[%clk 0:01:50]}  Qxd1 {[%clk 0:00:16]} 22. Raxd1 {[%clk 0:01:51]}  Rxe5 {[%clk 0:00:14]} 23. Rd7+ {[%clk 0:01:51]}  Kg8 {[%clk 0:00:06]} 24. Rxg7+ {[%clk 0:01:50]} 1-0


[Site "https://www.chess.com"]

[Event "Titled Tuesday Blitz March 14 Early 2023"]
[White "Quispe Santacruz, Javier"]
[Black "Filgueira, Hernan"]
[WhiteFideId "3800920"]
[BlackFideId "101770"]
[WhiteElo "1875"]
[BlackElo "2363"]
[Result "0-1"]
[Round "01"]
[TimeControl "180+2"]
[Date "2023.03.14"]
[WhiteClock "0:00:04"]
[BlackClock "0:00:58"]

1. d4 {[%clk 0:02:56]}  d6 {[%clk 0:02:58]} 2. c4 {[%clk 0:02:55]}  e5 {[%clk 0:02:58]} 3. Nf3 {[%clk 0:02:53]}  e4 {[%clk 0:02:57]} 4. Nfd2 {[%clk 0:02:52]}  f5 {[%clk 0:02:57]} 5. Nc3 {[%clk 0:02:52]}  Nf6 {[%clk 0:02:56]} 6. g3 {[%clk 0:02:52]}  g6 {[%clk 0:02:55]} 7. Bg2 {[%clk 0:02:52]}  Bg7 {[%clk 0:02:55]} 8. O-O {[%clk 0:02:51]}  O-O {[%clk 0:02:54]} 9. b4 {[%clk 0:02:48]}  a5 {[%clk 0:02:36]} 10. b5 {[%clk 0:02:46]}  Re8 {[%clk 0:02:31]} 11. Bb2 {[%clk 0:02:45]}  Nbd7 {[%clk 0:02:23]} 12. e3 {[%clk 0:02:44]}  Nf8 {[%clk 0:02:23]} 13. a4 {[%clk 0:02:39]}  h5 {[%clk 0:02:23]} 14. Nb3 {[%clk 0:02:33]}  h4 {[%clk 0:02:23]} 15. Nd5 {[%clk 0:01:34]}  N8h7 {[%clk 0:02:13]} 16. f3 {[%clk 0:00:58]}  hxg3 {[%clk 0:02:12]} 17. hxg3 {[%clk 0:00:55]}  exf3 {[%clk 0:02:07]} 18. Bxf3 {[%clk 0:00:41]}  Ne4 {[%clk 0:01:39]} 19. Kg2 {[%clk 0:00:34]}  c6 {[%clk 0:01:38]} 20. Nc3 {[%clk 0:00:27]}  Nxc3 {[%clk 0:01:12]} 21. Bxc3 {[%clk 0:00:22]}  Rxe3 {[%clk 0:01:12]} 22. Be1 {[%clk 0:00:18]}  Bd7 {[%clk 0:01:06]} 23. Bf2 {[%clk 0:00:18]}  Re8 {[%clk 0:01:05]} 24. Rh1 {[%clk 0:00:16]}  Ng5 {[%clk 0:01:02]} 25. Be2 {[%clk 0:00:06]}  Qe7 {[%clk 0:00:58]} 26. Bd3 {[%clk 0:00:04]}  Qf7 {[%clk 0:00:58]} 0-1


[Site "https://www.chess.com"]

[Event "Titled Tuesday Blitz March 14 Early 2023"]
[White "Bongo Akanga Ndjila, Barthelemy"]
[Black "Garv Gaur"]
[WhiteFideId "10609431"]
[BlackFideId "45030839"]
[WhiteElo "1768"]
[BlackElo "2068"]
[Result "0-1"]
[Round "01"]
[TimeControl "180+2"]
[Date "2023.03.14"]
[WhiteClock "0:00:14"]
[BlackClock "0:00:35"]

1. d4 {[%clk 0:02:56]}  Nf6 {[%clk 0:02:59]} 2. c4 {[%clk 0:02:56]}  e6 {[%clk 0:02:58]} 3. Nf3 {[%clk 0:02:56]}  b6 {[%clk 0:02:58]} 4. a3 {[%clk 0:02:55]}  Bb7 {[%clk 0:02:57]} 5. Nc3 {[%clk 0:02:55]}  d5 {[%clk 0:02:55]} 6. cxd5 {[%clk 0:02:53]}  Nxd5 {[%clk 0:02:52]} 7. Qc2 {[%clk 0:02:53]}  c5 {[%clk 0:02:49]} 8. e4 {[%clk 0:02:53]}  Nxc3 {[%clk 0:02:49]} 9. bxc3 {[%clk 0:02:54]}  Nc6 {[%clk 0:02:49]} 10. Be3 {[%clk 0:02:52]}  Rc8 {[%clk 0:02:45]} 11. Qa4 {[%clk 0:02:44]}  Qc7 {[%clk 0:02:22]} 12. Ba6 {[%clk 0:02:27]}  Bxa6 {[%clk 0:02:19]} 13. Qxa6 {[%clk 0:02:26]}  Bd6 {[%clk 0:02:14]} 14. O-O {[%clk 0:02:23]}  O-O {[%clk 0:02:14]} 15. e5 {[%clk 0:02:17]}  Be7 {[%clk 0:02:13]} 16. Rac1 {[%clk 0:02:11]}  Na5 {[%clk 0:02:11]} 17. Qe2 {[%clk 0:02:07]}  Nb3 {[%clk 0:01:58]} 18. Rb1 {[%clk 0:02:01]}  c4 {[%clk 0:01:55]} 19. Qa2 {[%clk 0:01:56]}  b5 {[%clk 0:01:48]} 20. a4 {[%clk 0:01:55]}  a6 {[%clk 0:01:47]} 21. axb5 {[%clk 0:01:55]}  axb5 {[%clk 0:01:48]} 22. Qe2 {[%clk 0:01:51]}  Ra8 {[%clk 0:01:47]} 23. Nd2 {[%clk 0:01:49]}  Ra2 {[%clk 0:01:38]} 24. Qd1 {[%clk 0:01:48]}  Nxd2 {[%clk 0:01:36]} 25. Bxd2 {[%clk 0:01:48]}  b4 {[%clk 0:01:35]} 26. cxb4 {[%clk 0:01:45]}  c3 {[%clk 0:01:35]} 27. Rc1 {[%clk 0:01:40]}  Bxb4 {[%clk 0:01:35]} 28. Be3 {[%clk 0:01:38]}  c2 {[%clk 0:01:29]} 29. Qg4 {[%clk 0:01:38]}  Kh8 {[%clk 0:01:21]} 30. d5 {[%clk 0:01:34]}  Ba3 {[%clk 0:01:19]} 31. d6 {[%clk 0:01:27]}  Qc6 {[%clk 0:01:18]} 32. Qg5 {[%clk 0:01:11]}  Bxc1 {[%clk 0:01:15]} 33. Bxc1 {[%clk 0:01:11]}  f6 {[%clk 0:01:13]} 34. exf6 {[%clk 0:01:09]}  gxf6 {[%clk 0:01:14]} 35. Qh6 {[%clk 0:01:07]}  Qxd6 {[%clk 0:01:11]} 36. Bf4 {[%clk 0:00:55]}  Qe7 {[%clk 0:01:07]} 37. Rc1 {[%clk 0:00:46]}  e5 {[%clk 0:01:04]} 38. Be3 {[%clk 0:00:35]}  Rd8 {[%clk 0:01:02]} 39. g4 {[%clk 0:00:27]}  Rd1+ {[%clk 0:00:57]} 40. Kg2 {[%clk 0:00:28]}  Rxc1 {[%clk 0:00:54]} 41. Bxc1 {[%clk 0:00:27]}  Ra4 {[%clk 0:00:53]} 42. h3 {[%clk 0:00:26]}  Rd4 {[%clk 0:00:46]} 43. g5 {[%clk 0:00:25]}  Qg7 {[%clk 0:00:37]} 44. Qh5 {[%clk 0:00:20]}  Rd8 {[%clk 0:00:37]} 45. h4 {[%clk 0:00:18]}  fxg5 {[%clk 0:00:34]} 46. hxg5 {[%clk 0:00:18]}  Rf8 {[%clk 0:00:34]} 47. g6 {[%clk 0:00:17]}  Qxg6+ {[%clk 0:00:34]} 48. Qxg6 {[%clk 0:00:16]}  hxg6 {[%clk 0:00:35]} 49. Kf1 {[%clk 0:00:15]}  Rd8 {[%clk 0:00:34]} 50. Ke2 {[%clk 0:00:16]}  Rd1 {[%clk 0:00:34]} 51. Bb2 {[%clk 0:00:13]}  c1=Q {[%clk 0:00:35]} 52. Bxe5+ {[%clk 0:00:14]}  Kg8 {[%clk 0:00:35]} 0-1


[Site "https://www.chess.com"]

[Event "Titled Tuesday Blitz March 14 Early 2023"]
[White "Lorenzo De La Riva, Lazaro"]
[Black "Manukyan, Sargis A."]
[WhiteFideId "2268809"]
[BlackFideId "13303970"]
[WhiteElo "2294"]
[BlackElo "2187"]
[Result "0-1"]
[Round "01"]
[TimeControl "180+2"]
[Date "2023.03.14"]
[WhiteClock "0:00:05"]
[BlackClock "0:00:57"]

1. e4 {[%clk 0:02:56]}  c5 {[%clk 0:02:57]} 2. Nf3 {[%clk 0:02:56]}  d6 {[%clk 0:02:57]} 3. d4 {[%clk 0:02:56]}  cxd4 {[%clk 0:02:58]} 4. Nxd4 {[%clk 0:02:57]}  Nf6 {[%clk 0:02:56]} 5. Nc3 {[%clk 0:02:58]}  g6 {[%clk 0:02:54]} 6. Be3 {[%clk 0:02:57]}  Bg7 {[%clk 0:02:52]} 7. f3 {[%clk 0:02:57]}  O-O {[%clk 0:02:52]} 8. Qd2 {[%clk 0:02:58]}  Nc6 {[%clk 0:02:52]} 9. O-O-O {[%clk 0:02:58]}  d5 {[%clk 0:02:44]} 10. Nxc6 {[%clk 0:02:58]}  bxc6 {[%clk 0:02:44]} 11. e5 {[%clk 0:02:57]}  Nd7 {[%clk 0:02:42]} 12. f4 {[%clk 0:02:57]}  e6 {[%clk 0:02:39]} 13. h4 {[%clk 0:02:56]}  c5 {[%clk 0:02:36]} 14. Nxd5 {[%clk 0:02:29]}  exd5 {[%clk 0:02:36]} 15. Qxd5 {[%clk 0:02:29]}  Rb8 {[%clk 0:02:36]} 16. Bxc5 {[%clk 0:02:29]}  Re8 {[%clk 0:02:33]} 17. Bc4 {[%clk 0:02:11]}  Re6 {[%clk 0:02:25]} 18. Bxa7 {[%clk 0:02:02]}  Rb7 {[%clk 0:02:20]} 19. Be3 {[%clk 0:01:45]}  Qc7 {[%clk 0:02:13]} 20. h5 {[%clk 0:01:39]}  Rb4 {[%clk 0:02:09]} 21. Bb3 {[%clk 0:01:30]}  Nf8 {[%clk 0:01:59]} 22. hxg6 {[%clk 0:01:29]}  hxg6 {[%clk 0:02:00]} 23. Qd2 {[%clk 0:01:11]}  Reb6 {[%clk 0:01:49]} 24. Bxb6 {[%clk 0:01:05]}  Qxb6 {[%clk 0:01:41]} 25. Kb1 {[%clk 0:00:54]}  Be6 {[%clk 0:01:40]} 26. Qd6 {[%clk 0:00:50]}  Qb5 {[%clk 0:01:31]} 27. Rd4 {[%clk 0:00:32]}  Rxd4 {[%clk 0:01:23]} 28. Qxd4 {[%clk 0:00:33]}  Bf5 {[%clk 0:01:23]} 29. Qc4 {[%clk 0:00:29]}  Qb7 {[%clk 0:01:22]} 30. a4 {[%clk 0:00:27]}  Be6 {[%clk 0:01:20]} 31. Qc3 {[%clk 0:00:23]}  Qxg2 {[%clk 0:01:21]} 32. Rd1 {[%clk 0:00:20]}  Bxb3 {[%clk 0:01:15]} 33. Qxb3 {[%clk 0:00:21]}  Ne6 {[%clk 0:01:15]} 34. Qb8+ {[%clk 0:00:21]}  Kh7 {[%clk 0:01:14]} 35. Qb3 {[%clk 0:00:21]}  Nxf4 {[%clk 0:01:14]} 36. Qe3 {[%clk 0:00:20]}  g5 {[%clk 0:01:10]} 37. a5 {[%clk 0:00:20]}  Qc6 {[%clk 0:01:03]} 38. Qd2 {[%clk 0:00:20]}  Bxe5 {[%clk 0:01:01]} 39. Qh2+ {[%clk 0:00:20]}  Kg7 {[%clk 0:01:01]} 40. Qg3 {[%clk 0:00:16]}  Bf6 {[%clk 0:00:59]} 41. Rg1 {[%clk 0:00:15]}  Qb5 {[%clk 0:00:59]} 42. Qb3 {[%clk 0:00:10]}  Qxa5 {[%clk 0:00:57]} 43. Qc4 {[%clk 0:00:11]}  Qb6 {[%clk 0:00:57]} 44. c3 {[%clk 0:00:03]}  Qxg1+ {[%clk 0:00:57]} 45. Ka2 {[%clk 0:00:04]}  Qa7+ {[%clk 0:00:57]} 46. Kb1 {[%clk 0:00:04]}  Qb6 {[%clk 0:00:58]} 47. b4 {[%clk 0:00:03]}  Qe6 {[%clk 0:00:58]} 48. Qf1 {[%clk 0:00:03]}  Qe4+ {[%clk 0:00:58]} 49. Kb2 {[%clk 0:00:03]}  Qxb4+ {[%clk 0:00:58]} 50. Kc2 {[%clk 0:00:03]}  Qxc3+ {[%clk 0:00:58]} 51. Kd1 {[%clk 0:00:04]}  Qa1+ {[%clk 0:00:58]} 52. Kc2 {[%clk 0:00:04]}  Qxf1 {[%clk 0:00:56]} 53. Kd2 {[%clk 0:00:04]}  Qe2+ {[%clk 0:00:57]} 54. Kc1 {[%clk 0:00:04]}  Bb2+ {[%clk 0:00:55]} 55. Kb1 {[%clk 0:00:04]}  Bc3 {[%clk 0:00:56]} 56. Kc1 {[%clk 0:00:04]}  Qd2+ {[%clk 0:00:56]} 57. Kb1 {[%clk 0:00:05]}  Qb2# {[%clk 0:00:57]} 0-1


[Site "https://www.chess.com"]

[Event "Titled Tuesday Blitz March 14 Early 2023"]
[White "Bews, Steven"]
[Black "Aung Thant Zin"]
[WhiteFideId "2400529"]
[BlackFideId "13000063"]
[WhiteElo "2590"]
[BlackElo "2278"]
[Result "0-1"]
[Round "01"]
[TimeControl "180+2"]
[Date "2023.03.14"]
[WhiteClock "0:00:42"]
[BlackClock "0:00:17"]

1. e4 {[%clk 0:02:56]}  c5 {[%clk 0:02:59]} 2. Nf3 {[%clk 0:02:55]}  Nc6 {[%clk 0:03:00]} 3. d4 {[%clk 0:02:53]}  cxd4 {[%clk 0:03:01]} 4. Nxd4 {[%clk 0:02:54]}  Nf6 {[%clk 0:03:01]} 5. Nc3 {[%clk 0:02:55]}  d6 {[%clk 0:03:02]} 6. Bg5 {[%clk 0:02:54]}  e6 {[%clk 0:03:02]} 7. Qd2 {[%clk 0:02:54]}  a6 {[%clk 0:03:02]} 8. O-O-O {[%clk 0:02:54]}  h6 {[%clk 0:03:02]} 9. Be3 {[%clk 0:02:51]}  Bd7 {[%clk 0:02:59]} 10. f3 {[%clk 0:02:51]}  b5 {[%clk 0:02:59]} 11. Kb1 {[%clk 0:02:52]}  b4 {[%clk 0:02:58]} 12. Nce2 {[%clk 0:02:52]}  d5 {[%clk 0:02:58]} 13. Nxc6 {[%clk 0:02:50]}  Bxc6 {[%clk 0:02:58]} 14. Nd4 {[%clk 0:02:51]}  Bb7 {[%clk 0:02:56]} 15. e5 {[%clk 0:02:52]}  Nd7 {[%clk 0:02:56]} 16. f4 {[%clk 0:02:50]}  Bc5 {[%clk 0:02:54]} 17. g4 {[%clk 0:02:49]}  Qb6 {[%clk 0:02:53]} 18. h4 {[%clk 0:02:48]}  O-O-O {[%clk 0:02:52]} 19. Bg2 {[%clk 0:02:39]}  Kb8 {[%clk 0:02:50]} 20. Rhe1 {[%clk 0:02:39]}  Rhe8 {[%clk 0:02:43]} 21. g5 {[%clk 0:02:08]}  h5 {[%clk 0:02:40]} 22. g6 {[%clk 0:01:59]}  f5 {[%clk 0:02:32]} 23. Bf3 {[%clk 0:01:58]}  Rh8 {[%clk 0:02:22]} 24. Rg1 {[%clk 0:01:58]}  a5 {[%clk 0:02:16]} 25. Rg5 {[%clk 0:01:57]}  Rde8 {[%clk 0:01:56]} 26. Rxh5 {[%clk 0:01:56]}  Rxh5 {[%clk 0:01:55]} 27. Bxh5 {[%clk 0:01:57]}  Qd8 {[%clk 0:01:51]} 28. Bf2 {[%clk 0:01:52]}  Qe7 {[%clk 0:01:43]} 29. Be2 {[%clk 0:01:51]}  Nb6 {[%clk 0:01:30]} 30. Bb5 {[%clk 0:01:49]}  Rh8 {[%clk 0:01:27]} 31. Qe3 {[%clk 0:01:33]}  Rc8 {[%clk 0:01:24]} 32. Qe2 {[%clk 0:01:28]}  Ka7 {[%clk 0:01:17]} 33. Nb3 {[%clk 0:01:23]}  Bxf2 {[%clk 0:01:04]} 34. Qxf2 {[%clk 0:01:24]}  a4 {[%clk 0:00:55]} 35. Na5 {[%clk 0:01:17]}  Rc5 {[%clk 0:00:48]} 36. Nxb7 {[%clk 0:01:13]}  Kxb7 {[%clk 0:00:48]} 37. Bd3 {[%clk 0:01:11]}  a3 {[%clk 0:00:44]} 38. h5 {[%clk 0:01:07]}  axb2 {[%clk 0:00:38]} 39. h6 {[%clk 0:01:07]}  gxh6 {[%clk 0:00:35]} 40. Rg1 {[%clk 0:01:07]}  Rc8 {[%clk 0:00:35]} 41. Qh2 {[%clk 0:01:02]}  Nc4 {[%clk 0:00:31]} 42. Qxh6 {[%clk 0:00:56]}  Na3+ {[%clk 0:00:22]} 43. Kxb2 {[%clk 0:00:54]}  Qc5 {[%clk 0:00:23]} 44. Rg3 {[%clk 0:00:43]}  Qc3+ {[%clk 0:00:19]} 45. Kc1 {[%clk 0:00:42]}  Qe1+ {[%clk 0:00:19]} 46. Kb2 {[%clk 0:00:42]}  Qb1# {[%clk 0:00:17]} 0-1


[Site "https://www.chess.com"]

[Event "Titled Tuesday Blitz March 14 Early 2023"]
[White "Allam, Yara"]
[Black "Domingo Nunez, Alejandro"]
[WhiteFideId "10615709"]
[BlackFideId "22245561"]
[WhiteElo "1758"]
[BlackElo "2230"]
[Result "0-1"]
[Round "01"]
[TimeControl "180+2"]
[Date "2023.03.14"]
[WhiteClock "0:00:39"]
[BlackClock "0:01:05"]

1. e4 {[%clk 0:02:59]}  g6 {[%clk 0:03:00]} 2. d4 {[%clk 0:02:59]}  Bg7 {[%clk 0:03:00]} 3. c3 {[%clk 0:02:59]}  c6 {[%clk 0:03:01]} 4. Bd3 {[%clk 0:03:00]}  d5 {[%clk 0:03:01]} 5. Nd2 {[%clk 0:02:58]}  dxe4 {[%clk 0:03:00]} 6. Nxe4 {[%clk 0:02:58]}  Nf6 {[%clk 0:03:00]} 7. Nf3 {[%clk 0:02:54]}  O-O {[%clk 0:02:59]} 8. O-O {[%clk 0:02:52]}  Nbd7 {[%clk 0:02:57]} 9. Nxf6+ {[%clk 0:02:50]}  exf6 {[%clk 0:02:56]} 10. h3 {[%clk 0:02:50]}  a5 {[%clk 0:02:55]} 11. Bf4 {[%clk 0:02:48]}  Nb6 {[%clk 0:02:55]} 12. Qc2 {[%clk 0:02:41]}  Nd5 {[%clk 0:02:53]} 13. Bg3 {[%clk 0:02:38]}  Be6 {[%clk 0:02:53]} 14. a3 {[%clk 0:02:35]}  Qd7 {[%clk 0:02:49]} 15. Rfe1 {[%clk 0:02:24]}  Rfd8 {[%clk 0:02:47]} 16. Nd2 {[%clk 0:02:20]}  f5 {[%clk 0:02:40]} 17. Be5 {[%clk 0:02:10]}  Bxe5 {[%clk 0:02:38]} 18. Rxe5 {[%clk 0:02:09]}  c5 {[%clk 0:02:37]} 19. Nb3 {[%clk 0:01:45]}  b6 {[%clk 0:02:01]} 20. Bf1 {[%clk 0:01:32]}  a4 {[%clk 0:01:59]} 21. Nd2 {[%clk 0:01:25]}  cxd4 {[%clk 0:01:55]} 22. cxd4 {[%clk 0:01:25]}  Rac8 {[%clk 0:01:55]} 23. Qd1 {[%clk 0:01:17]}  Nf6 {[%clk 0:01:48]} 24. Nf3 {[%clk 0:01:02]}  Bb3 {[%clk 0:01:46]} 25. Qd2 {[%clk 0:00:58]}  Ne4 {[%clk 0:01:38]} 26. Qb4 {[%clk 0:00:53]}  Qd6 {[%clk 0:01:16]} 27. Qb5 {[%clk 0:00:39]}  f6 {[%clk 0:01:05]} 0-1


[Site "https://www.chess.com"]

[Event "Titled Tuesday Blitz March 14 Early 2023"]
[White "Smirnov, Pavel"]
[Black "Nakamura, Hikaru"]
[WhiteFideId "4123425"]
[BlackFideId "2016192"]
[WhiteElo "2519"]
[BlackElo "2879"]
[Result "0-1"]
[Round "02"]
[TimeControl "180+2"]
[Date "2023.03.14"]
[WhiteClock "0:00:49"]
[BlackClock "0:01:42"]

1. d4 {[%clk 0:03:00]}  g6 {[%clk 0:02:59]} 2. e4 {[%clk 0:03:00]}  Bg7 {[%clk 0:02:59]} 3. Nc3 {[%clk 0:03:01]}  a6 {[%clk 0:02:58]} 4. f4 {[%clk 0:03:00]}  c6 {[%clk 0:02:58]} 5. Nf3 {[%clk 0:03:00]}  d5 {[%clk 0:02:58]} 6. e5 {[%clk 0:03:00]}  Bg4 {[%clk 0:02:59]} 7. Be3 {[%clk 0:02:55]}  e6 {[%clk 0:02:57]} 8. h3 {[%clk 0:02:53]}  Bxf3 {[%clk 0:02:58]} 9. Qxf3 {[%clk 0:02:54]}  h5 {[%clk 0:02:58]} 10. Bd3 {[%clk 0:02:52]}  h4 {[%clk 0:02:59]} 11. O-O {[%clk 0:02:52]}  Ne7 {[%clk 0:02:59]} 12. Ne2 {[%clk 0:02:51]}  Nf5 {[%clk 0:02:59]} 13. Bf2 {[%clk 0:02:51]}  Nd7 {[%clk 0:02:59]} 14. b3 {[%clk 0:02:52]}  Bf8 {[%clk 0:02:56]} 15. c4 {[%clk 0:02:51]}  Ba3 {[%clk 0:02:56]} 16. Rfd1 {[%clk 0:02:47]}  Kf8 {[%clk 0:02:52]} 17. Kh2 {[%clk 0:02:47]}  Kg7 {[%clk 0:02:52]} 18. Rab1 {[%clk 0:02:46]}  a5 {[%clk 0:02:52]} 19. Ng1 {[%clk 0:02:43]}  Qb6 {[%clk 0:02:45]} 20. c5 {[%clk 0:02:36]}  Qd8 {[%clk 0:02:41]} 21. Qe2 {[%clk 0:02:33]}  b6 {[%clk 0:02:41]} 22. cxb6 {[%clk 0:02:33]}  Qxb6 {[%clk 0:02:41]} 23. Nf3 {[%clk 0:02:34]}  Be7 {[%clk 0:02:41]} 24. Rdc1 {[%clk 0:02:33]}  Rac8 {[%clk 0:02:40]} 25. Rc2 {[%clk 0:02:28]}  c5 {[%clk 0:02:40]} 26. Bxf5 {[%clk 0:02:21]}  gxf5 {[%clk 0:02:36]} 27. dxc5 {[%clk 0:02:20]}  Bxc5 {[%clk 0:02:32]} 28. Bxh4 {[%clk 0:02:13]}  Qb4 {[%clk 0:02:27]} 29. Bg5 {[%clk 0:01:46]}  Qe4 {[%clk 0:02:24]} 30. Kh1 {[%clk 0:00:53]}  Be3 {[%clk 0:01:59]} 31. Rbb2 {[%clk 0:00:49]}  Bc1 {[%clk 0:01:42]} 0-1


[Site "https://www.chess.com"]